fUST/lending_fUST_20250819
["ID","MTS","AMOUNT","RATE_DAILY","PERIOD"]
[380104944,1755545447683,-224.46297378,0.00021643,2]
[380104945,1755545447765,-318.25109058,0.00019178,2]
[380104946,1755545447775,-440.0,0.00019452,2]
[380104947,1755545447784,-963.72702622,0.00021643,2]
[380104948,1755545447794,-480.0,0.00021643,2]
[380104949,1755545447804,-3096.08,0.00021643,2]
[380104950,1755545447813,-480.0,0.00021643,2]
[380104951,1755545447823,-480.0,0.00021643,2]
[380104952,1755545447832,-480.0,0.00021643,2]
[380104953,1755545447841,-480.0,0.00021643,2]
[380104954,1755545447850,-480.0,0.00021643,2]
[380104955,1755545447860,-163.85873082,0.00021643,2]
[380104956,1755545447870,-480.0,0.00021643,2]
[380104957,1755545447879,-480.0,0.00021643,2]
[380104958,1755545447889,-480.0,0.00021643,2]
[380104959,1755545447898,-480.0,0.00021643,2]
[380104960,1755545447907,-534.23315264,0.00021643,2]
[380104961,1755545448116,-445.70456274,0.00019178,2]
[380104962,1755545448127,-500.0,0.00019178,2]
[380104963,1755545448140,-3.46684736,0.00021643,2]
[380104964,1755545448150,-480.0,0.00021643,2]
[380104965,1755545448160,-480.0,0.00021643,2]
[380104966,1755545448170,-728.99,0.00021643,2]
[380104967,1755545448180,-561.56,0.00021643,2]
[380104968,1755545448190,-480.0,0.00021643,2]
[380104969,1755545448199,-158.0,0.00021644,5]
[380104970,1755545448209,-2000.0,0.00021646,2]
[380104971,1755545448219,-2000.0,0.00021646,2]
[380104972,1755545448228,-2000.0,0.00021646,2]
[380104973,1755545448238,-2000.0,0.00021646,2]
[380104974,1755545448248,-2000.0,0.00021646,2]
[380104975,1755545448258,-2000.0,0.00021646,2]
[380104976,1755545448267,-1168.334,0.00021646,2]
[380104977,1755545448276,-624.13,0.00021786,2]
[380104978,1755545448286,-972.0,0.00021804,2]
[380104979,1755545448295,-2153.0,0.00021804,2]
[380104980,1755545448305,-637.0,0.00021804,2]
[380104981,1755545448315,-408.0,0.00021804,2]
[380104982,1755545448325,-697.28,0.00021917,2]
[380104983,1755545448334,-873.41,0.00021917,2]
[380104984,1755545448344,-849.76,0.00021917,2]
[380104985,1755545448354,-583.67,0.00021917,2]
[380104986,1755545448363,-480.0,0.00021917,2]
[380104987,1755545448372,-480.0,0.00021917,2]
[380104988,1755545448382,-3096.08,0.00021917,2]
[380104989,1755545448392,-177.37257401,0.00021917,2]
[380104990,1755545448403,-480.0,0.00021917,2]
[380104991,1755545448413,-480.0,0.00021917,2]
[380104992,1755545448424,-480.0,0.00021917,2]
[380104993,1755545448433,-480.0,0.00021917,2]
[380104994,1755545448443,-442.52051717,0.00021917,2]
[380104995,1755545448453,-480.0,0.00021917,2]
[380104996,1755545448463,-480.0,0.00021917,2]
[380104997,1755545448472,-480.0,0.00021917,2]
[380104998,1755545448482,-537.7,0.00021917,2]
[380104999,1755545448492,-480.0,0.00021917,2]
[380105000,1755545448501,-728.99,0.00021917,2]
[380105001,1755545448511,-561.56,0.00021917,2]
[380105002,1755545448520,-480.0,0.00021917,2]
[380105003,1755545448530,-720.0,0.00021946,20]
[380105004,1755545448539,-500.68247824,0.00021985,2]
[380105005,1755545448548,-2359.17,0.00022,7]
[380105006,1755545448558,-7336.29,0.00022,7]
[380105007,1755545448568,-13266.47,0.00022,2]
[380105008,1755545448578,-183.0,0.00022,2]
[380105009,1755545448587,-2310.41810318,0.00022001,5]
[380105010,1755545448596,-452.426,0.00022174,2]
[380105011,1755545448605,-697.28,0.00022191,2]
[380105012,1755545448616,-873.41,0.00022191,2]
[380105013,1755545448625,-849.76,0.00022191,2]
[380105014,1755545448635,-583.67,0.00022191,2]
[380105015,1755545448645,-480.0,0.00022191,2]
[380105016,1755545448654,-480.0,0.00022191,2]
[380105017,1755545448663,-3096.08,0.00022191,2]
[380105018,1755545448673,-480.0,0.00022191,2]
[380105019,1755545448682,-480.0,0.00022191,2]
[380105020,1755545448691,-480.0,0.00022191,2]
[380105021,1755545448701,-480.0,0.00022191,2]
[380105022,1755545448710,-228.7,0.00022191,2]
[380105023,1755545448720,-480.0,0.00022191,2]
[380105024,1755545448730,-480.0,0.00022191,2]
[380105025,1755545448739,-537.7,0.00022191,2]
[380105026,1755545448749,-480.0,0.00022191,2]
[380105027,1755545448759,-728.99,0.00022191,2]
[380105028,1755545448769,-561.56,0.00022191,2]
[380105029,1755545448779,-480.0,0.00022191,2]
[380105030,1755545448793,-507.48997828,0.00022452,2]
[380105031,1755545448803,-697.28,0.00022465,2]
[380105032,1755545448812,-873.41,0.00022465,2]
[380105033,1755545448822,-849.76,0.00022465,2]
[380105034,1755545448832,-583.67,0.00022465,2]
[380105035,1755545448841,-480.0,0.00022465,2]
[380105036,1755545448851,-480.0,0.00022465,2]
[380105037,1755545448861,-3096.08,0.00022465,2]
[380105038,1755545448870,-480.0,0.00022465,2]
[380105039,1755545448880,-480.0,0.00022465,2]
[380105040,1755545448889,-480.0,0.00022465,2]
[380105041,1755545448899,-480.0,0.00022465,2]
[380105042,1755545448909,-480.0,0.00022465,2]
[380105043,1755545448917,-480.0,0.00022465,2]
[380105044,1755545448927,-537.7,0.00022465,2]
[380105045,1755545448938,-480.0,0.00022465,2]
[380105046,1755545448947,-728.99,0.00022465,2]
[380105047,1755545448957,-561.56,0.00022465,2]
[380105048,1755545448966,-480.0,0.00022465,2]
[380105049,1755545448975,-832.17,0.00022733,2]
[380105050,1755545448985,-697.28,0.00022739,2]
[380105051,1755545449012,-873.41,0.00022739,2]
[380105052,1755545449022,-849.76,0.00022739,2]
[380105053,1755545449031,-583.67,0.00022739,2]
[380105054,1755545449041,-480.0,0.00022739,2]
[380105055,1755545449050,-480.0,0.00022739,2]
[380105056,1755545449060,-3096.08,0.00022739,2]
[380105057,1755545449070,-264.26436017,0.00022739,2]
[380105058,1755545449079,-480.0,0.00022739,2]
[380105059,1755545449088,-480.0,0.00022739,2]
[380105060,1755545449098,-480.0,0.00022739,2]
[380105061,1755545449108,-480.0,0.00022739,2]
[380105062,1755545449117,-480.0,0.00022739,2]
[380105063,1755545449128,-537.7,0.00022739,2]
[380105064,1755545449140,-480.0,0.00022739,2]
[380105065,1755545449151,-728.99,0.00022739,2]
[380105066,1755545449162,-561.56,0.00022739,2]
[380105067,1755545449171,-480.0,0.00022739,2]
[380105068,1755545449182,-587.0,0.0002276,2]
[380105069,1755545449192,-5000.0,0.00022861,2]
[380105070,1755545449201,-502.95669463,0.00022973,2]
[380105071,1755545449212,-215.75323784,0.00023,30]
[380105072,1755545449222,-160.0,0.00023,2]
[380105073,1755545449234,-151.0,0.00023013,7]
[380105074,1755545449243,-151.0,0.00023013,7]
[380105075,1755545449253,-697.28,0.00023013,2]
[380105076,1755545449263,-215.75323784,0.00023013,7]
[380105077,1755545449370,-873.41,0.00023013,2]
[380105078,1755545449380,-849.76,0.00023013,2]
[380105079,1755545449390,-583.67,0.00023013,2]
[380105080,1755545449399,-480.0,0.00023013,2]
[380105081,1755545449408,-375.82681177,0.00023013,7]
[380105082,1755545449418,-480.0,0.00023013,2]
[380105083,1755545449427,-3096.08,0.00023013,2]
[380105084,1755545449438,-528.58062739,0.00023013,7]
[380105085,1755545449447,-480.0,0.00023013,2]
[380105086,1755545449458,-200.93,0.00023013,2]
[380105087,1755545449467,-480.0,0.00023013,2]
[380105088,1755545449476,-480.0,0.00023013,2]
[380105089,1755545449485,-480.0,0.00023013,2]
[380105090,1755545449495,-417.15472785,0.00023013,7]
[380105091,1755545449504,-537.7,0.00023013,2]
[380105092,1755545449513,-203.97199278,0.00023013,2]
[380105093,1755545449522,-728.99,0.00023013,2]
[380105094,1755545449532,-561.56,0.00023013,2]
[380105095,1755545449541,-480.0,0.00023013,2]
[380105096,1755545449550,-697.28,0.00023287,2]
[380105097,1755545449560,-873.41,0.00023287,2]
[380105098,1755545449569,-849.76,0.00023287,2]
[380105099,1755545449578,-583.67,0.00023287,2]
[380105100,1755545449587,-204.11899159,0.00023287,2]
[380105101,1755545449597,-480.0,0.00023287,2]
[380105102,1755545449609,-3096.08,0.00023287,2]
[380105103,1755545449619,-480.0,0.00023287,2]
[380105104,1755545449629,-480.0,0.00023287,2]
[380105105,1755545449638,-480.0,0.00023287,2]
[380105106,1755545449648,-480.0,0.00023287,2]
[380105107,1755545449657,-537.7,0.00023287,2]
[380105108,1755545449666,-728.99,0.00023287,2]
[380105109,1755545449675,-561.56,0.00023287,2]
[380105110,1755545449684,-480.0,0.00023287,2]
[380105111,1755545449694,-4000.0,0.0002342,4]
[380105112,1755545449703,-697.28,0.00023561,2]
[380105113,1755545449713,-873.41,0.00023561,2]
[380105114,1755545449723,-849.76,0.00023561,2]
[380105115,1755545449732,-583.67,0.00023561,2]
[380105116,1755545449743,-480.0,0.00023561,2]
[380105117,1755545449752,-3096.08,0.00023561,2]
[380105118,1755545449762,-480.0,0.00023561,2]
[380105119,1755545449771,-480.0,0.00023561,2]
[380105120,1755545449780,-619.6,0.00023561,2]
[380105121,1755545449790,-480.0,0.00023561,2]
[380105122,1755545449800,-537.7,0.00023561,2]
[380105123,1755545449809,-728.99,0.00023561,2]
[380105124,1755545449819,-561.56,0.00023561,2]
[380105125,1755545449828,-480.0,0.00023561,2]
[380105126,1755545449838,-507.48997828,0.00023576,2]
[380105127,1755545449847,-719.06568298,0.000236,2]
[380105128,1755545449856,-1040.21,0.0002368,2]
[380105129,1755545449865,-1115.77673326,0.000237,30]
[380105130,1755545449874,-697.28,0.00023835,2]
[380105131,1755545449883,-873.41,0.00023835,2]
[380105132,1755545449892,-849.76,0.00023835,2]
[380105133,1755545449901,-583.67,0.00023835,2]
[380105134,1755545449911,-480.0,0.00023835,2]
[380105135,1755545449920,-3096.08,0.00023835,2]
[380105136,1755545449929,-480.0,0.00023835,2]
[380105137,1755545449938,-441.058794,0.00023835,2]
[380105138,1755545449947,-480.0,0.00023835,2]
[380105139,1755545449957,-537.7,0.00023835,2]
[380105140,1755545449967,-728.99,0.00023835,2]
[380105141,1755545449976,-561.56,0.00023835,2]
[380105142,1755545449985,-480.0,0.00023835,2]
[380105143,1755545449994,-900.0,0.00023865,2]
[380105144,1755545450003,-232.18122251,0.00024,7]
[380105145,1755545450012,-160.0,0.00024,7]
[380105146,1755545450021,-216.85420361,0.00024,7]
[380105147,1755545450030,-843.81736472,0.00024,7]
[380105148,1755545450040,-160.0,0.00024,7]
[380105149,1755545450049,-697.28,0.00024109,2]
[380105150,1755545450059,-873.41,0.00024109,2]
[380105151,1755545450068,-849.76,0.00024109,2]
[380105152,1755545450078,-583.67,0.00024109,2]
[380105153,1755545450088,-167.76297102,0.00024109,2]
[380105154,1755545450097,-3096.08,0.00024109,2]
[380105155,1755545450107,-480.0,0.00024109,2]
[380105156,1755545450116,-406.43037514,0.00024109,2]
[380105157,1755545450126,-537.7,0.00024109,2]
[380105158,1755545450139,-728.99,0.00024109,2]
[380105159,1755545450148,-561.56,0.00024109,2]
[380105160,1755545450157,-480.0,0.00024109,2]
[380105161,1755545450167,-864.0,0.00024141,20]
[380105162,1755545450176,-950.2,0.000242,7]
[380105163,1755545450186,-13266.47,0.000242,2]
[380105164,1755545450196,-501.49730501,0.00024223,2]
[380105165,1755545450205,-697.28,0.00024383,2]
[380105166,1755545450216,-873.41,0.00024383,2]
[380105167,1755545450226,-849.76,0.00024383,2]
[380105168,1755545450236,-583.67,0.00024383,2]
[380105169,1755545450246,-3096.08,0.00024383,2]
[380105170,1755545450255,-338.6668461,0.00024383,2]
[380105171,1755545450265,-537.7,0.00024383,2]
[380105172,1755545450274,-728.99,0.00024383,2]
[380105173,1755545450284,-561.56,0.00024383,2]
[380105174,1755545450293,-245.46249553,0.00024383,2]
[380105175,1755545450303,-187.0,0.0002444,2]
[380105176,1755545450313,-187.0,0.00024458,2]
[380105177,1755545450323,-2359.17,0.000245,7]
[380105178,1755545450332,-7336.29,0.000245,7]
[380105179,1755545450341,-160.8129855,0.00024521,2]
[380105180,1755545450350,-157.1842415,0.00024521,2]
[380105181,1755545450360,-580.787823,0.00024521,2]
[380105182,1755545450368,-160.8129855,0.00024521,2]
[380105183,1755545450377,-153.0,0.00024521,2]
[380105184,1755545450387,-580.787823,0.00024521,2]
[380105185,1755545450396,-160.8129855,0.00024521,2]
[380105186,1755545450406,-153.0,0.00024521,2]
[380105187,1755545450415,-580.787823,0.00024521,2]
[380105188,1755545450424,-580.787823,0.00024521,2]
[380105189,1755545450433,-160.8129855,0.00024521,2]
[380105190,1755545450443,-160.8129855,0.00024521,2]
[380105191,1755545450452,-580.787823,0.00024521,2]
[380105192,1755545450462,-160.8129855,0.00024521,2]
[380105193,1755545450473,-580.787823,0.00024521,2]
[380105194,1755545450482,-321.625971,0.00024521,2]
[380105195,1755545450492,-580.787823,0.00024521,2]
[380105196,1755545450501,-160.8129855,0.00024521,2]
[380105197,1755545450511,-580.787823,0.00024521,2]
[380105198,1755545450520,-160.8129855,0.00024521,2]
[380105199,1755545450530,-580.787823,0.00024521,2]
[380105200,1755545450538,-199.8073093,0.00024521,2]
[380105201,1755545450547,-167.933839,0.00024521,2]
[380105202,1755545450556,-580.787823,0.00024521,2]
[380105203,1755545450566,-580.787823,0.00024521,2]
[380105204,1755545450575,-580.787823,0.00024521,2]
[380105205,1755545450585,-153.0,0.00024521,2]
[380105206,1755545450594,-580.787823,0.00024521,2]
[380105207,1755545450603,-355.4978885,0.00024521,2]
[380105208,1755545450612,-153.0,0.00024521,2]
[380105209,1755545450622,-153.0,0.00024521,2]
[380105210,1755545450631,-153.0,0.00024521,2]
[380105211,1755545450639,-153.0,0.00024521,2]
[380105212,1755545450649,-153.0,0.00024521,2]
[380105213,1755545450658,-153.0,0.00024521,2]
[380105214,1755545450667,-153.0,0.00024521,2]
[380105215,1755545450676,-151.0,0.000246,9]
[380105216,1755545450686,-697.28,0.00024657,2]
[380105217,1755545450695,-873.41,0.00024657,2]
[380105218,1755545450704,-849.76,0.00024657,2]
[380105219,1755545450714,-583.67,0.00024657,2]
[380105220,1755545450723,-3096.08,0.00024657,2]
[380105221,1755545450733,-537.7,0.00024657,2]
[380105222,1755545450742,-728.99,0.00024657,2]
[380105223,1755545450754,-561.56,0.00024657,2]
[380105224,1755545450764,-160.0,0.00024661,3]
[380105225,1755545450773,-187.0,0.00024696,2]
[380105226,1755545450782,-507.48997828,0.00024701,2]
[380105227,1755545450791,-1248.26,0.00024729,2]
[380105228,1755545450800,-500.0,0.00024773,2]
[380105229,1755545450809,-500.0,0.00024773,2]
[380105230,1755545450819,-163.71,0.000248,2]
[380105231,1755545450828,-457.46747665,0.000248,30]
[380105232,1755545450837,-62123.0,0.000248,7]
[380105233,1755545450846,-823.0,0.00024804,2]
[380105234,1755545450854,-573.478,0.00024804,2]
[380105235,1755545450864,-637.0,0.00024804,2]
[380105236,1755545450873,-408.0,0.00024804,2]
[380105237,1755545450882,-500.78453065,0.00024873,2]
[380105238,1755545450891,-151.0,0.000249,6]
[380105239,1755545450901,-160098.99891837,0.000249,2]
[380105240,1755545450914,-2846.2941249,0.000249,2]
[380105241,1755545577428,165.932644,0.00013699,2]
[380105242,1755545699411,792.728123,0.00027397,120]
[380105244,1755545970262,480.0,0.00027945,120]
[380105245,1755546368934,200.90242193,0.00018506,2]
[380105246,1755546395131,-446.15369234,0.00019078,2]
[380105251,1755546625974,171.938033,0.00013699,2]
[380105261,1755546632636,594.546092,0.00027397,120]
[380105262,1755546632741,-346.64902537,0.00019,2]
[380105263,1755546632751,-901.63781002,0.00019078,2]
[380105422,1755546638433,-60.13310906,0.00019078,2]
[380105423,1755546638442,-1000.0,0.00019078,2]
[380105424,1755546638451,-682.19529592,0.00019078,2]
[380105425,1755546638464,-961.77091908,0.00019152,2]
[380105426,1755546638474,-245.0,0.00019165,2]
[380105427,1755546638483,-300.0,0.00019165,2]
[380105428,1755546638493,-500.0,0.00019166,2]
[380105429,1755546638503,-500.0,0.00019166,2]
[380105430,1755546638512,-500.0,0.00019166,2]
[380105431,1755546638522,-500.0,0.00019166,2]
[380105432,1755546638533,-500.0,0.00019166,2]
[380105433,1755546638545,-500.0,0.00019166,2]
[380105434,1755546638556,-500.0,0.00019166,2]
[380105435,1755546638565,-648.305163,0.00019166,2]
[380105436,1755546638575,-18348.57739967,0.00019167,2]
[380105437,1755546638584,-350.95,0.00019168,3]
[380105438,1755546638594,-175.48,0.00019168,3]
[380105439,1755546638603,-526.44,0.00019168,3]
[380105440,1755546638612,-500.0,0.00019173,2]
[380105441,1755546638621,-500.0,0.00019173,2]
[380105442,1755546638630,-500.0,0.00019173,2]
[380105443,1755546638639,-550.56182312,0.00019173,2]
[380105444,1755546638649,-500.0,0.00019173,2]
[380105445,1755546638658,-500.0,0.00019173,2]
[380105446,1755546638667,-500.0,0.00019177,2]
[380105447,1755546638677,-500.0,0.00019177,2]
[380105448,1755546638686,-500.0,0.00019177,2]
[380105449,1755546638696,-500.0,0.00019177,2]
[380105450,1755546638705,-500.0,0.00019177,2]
[380105451,1755546638715,-500.0,0.00019177,2]
[380105452,1755546638724,-372.99613586,0.00019177,2]
[380105453,1755546638733,-414.62982327,0.00019177,2]
[380105454,1755546638742,-442.15110872,0.00019177,2]
[380105455,1755546638751,-500.0,0.00019178,2]
[380105456,1755546638761,-502.52859319,0.00019178,2]
[380105457,1755546638772,-500.0,0.00019178,2]
[380105458,1755546638786,-470.42618697,0.00019178,2]
[380105459,1755546638795,-480.0,0.00019178,2]
[380105460,1755546638805,-480.0,0.00019178,2]
[380105461,1755546638814,-480.0,0.00019178,2]
[380105462,1755546638823,-460.0,0.00019178,2]
[380105463,1755546638832,-480.0,0.00019178,2]
[380105464,1755546638842,-480.0,0.00019178,2]
[380105465,1755546638851,-480.0,0.00019178,2]
[380105466,1755546638861,-480.0,0.00019178,2]
[380105467,1755546638871,-500.0,0.00019178,2]
[380105468,1755546638880,-500.0,0.00019178,2]
[380105469,1755546638890,-500.0,0.00019178,2]
[380105470,1755546638899,-413.07,0.00019178,2]
[380105471,1755546638908,-460.50152489,0.00019178,2]
[380105472,1755546638918,-480.0,0.00019178,2]
[380105473,1755546638928,-480.0,0.00019178,2]
[380105474,1755546638937,-480.0,0.00019178,2]
[380105475,1755546638947,-571.53,0.00019178,2]
[380105476,1755546638956,-480.0,0.00019178,2]
[380105477,1755546638966,-480.0,0.00019178,2]
[380105478,1755546638975,-480.0,0.00019178,2]
[380105479,1755546638984,-480.0,0.00019178,2]
[380105480,1755546638994,-480.0,0.00019178,2]
[380105481,1755546639003,-480.0,0.00019178,2]
[380105482,1755546639012,-480.0,0.00019178,2]
[380105483,1755546639021,-480.0,0.00019178,2]
[380105484,1755546639031,-527.3,0.00019178,2]
[380105485,1755546639040,-480.0,0.00019178,2]
[380105486,1755546639050,-480.0,0.00019178,2]
[380105487,1755546639059,-480.0,0.00019178,2]
[380105488,1755546639069,-480.0,0.00019178,2]
[380105489,1755546639078,-460.0,0.00019178,2]
[380105490,1755546639087,-480.0,0.00019178,2]
[380105491,1755546639096,-460.952594,0.00019178,2]
[380105492,1755546639106,-480.0,0.00019178,2]
[380105493,1755546639115,-480.0,0.00019178,2]
[380105494,1755546639125,-480.0,0.00019178,2]
[380105495,1755546639134,-480.0,0.00019178,2]
[380105496,1755546639144,-480.0,0.00019178,2]
[380105497,1755546639153,-480.0,0.00019178,2]
[380105498,1755546639162,-480.0,0.00019178,2]
[380105499,1755546639171,-460.88303836,0.00019178,2]
[380105500,1755546639180,-480.0,0.00019178,2]
[380105501,1755546639190,-480.0,0.00019178,2]
[380105502,1755546639199,-480.0,0.00019178,2]
[380105503,1755546639208,-545.22962814,0.00019178,2]
[380105504,1755546639217,-460.0,0.00019178,2]
[380105505,1755546639227,-480.0,0.00019178,2]
[380105506,1755546639236,-480.0,0.00019178,2]
[380105507,1755546639246,-480.84302919,0.00019178,2]
[380105508,1755546639255,-480.0,0.00019178,2]
[380105509,1755546639264,-480.0,0.00019178,2]
[380105510,1755546639273,-480.0,0.00019178,2]
[380105511,1755546639282,-480.0,0.00019178,2]
[380105512,1755546639292,-480.0,0.00019178,2]
[380105513,1755546639301,-480.0,0.00019178,2]
[380105514,1755546639310,-480.0,0.00019178,2]
[380105515,1755546639319,-480.0,0.00019178,2]
[380105516,1755546639328,-556.76,0.00019178,2]
[380105517,1755546639338,-480.0,0.00019178,2]
[380105518,1755546639348,-480.0,0.00019178,2]
[380105519,1755546639359,-460.0,0.00019178,2]
[380105520,1755546639368,-480.0,0.00019178,2]
[380105521,1755546639377,-480.0,0.00019178,2]
[380105522,1755546639386,-480.0,0.00019178,2]
[380105523,1755546639395,-480.71690761,0.00019178,2]
[380105524,1755546639405,-442.27041736,0.00019178,2]
[380105525,1755546639414,-480.60070133,0.00019178,2]
[380105526,1755546639423,-480.0,0.00019178,2]
[380105527,1755546639432,-460.0,0.00019178,2]
[380105528,1755546639442,-480.0,0.00019178,2]
[380105529,1755546639453,-447.99427708,0.00019178,2]
[380105530,1755546639463,-480.0,0.00019178,2]
[380105531,1755546639473,-480.0,0.00019178,2]
[380105532,1755546639482,-480.0,0.00019178,2]
[380105533,1755546639491,-480.0,0.00019178,2]
[380105534,1755546639502,-480.0,0.00019178,2]
[380105535,1755546639511,-480.0,0.00019178,2]
[380105536,1755546639520,-460.0,0.00019178,2]
[380105537,1755546639530,-480.0,0.00019178,2]
[380105538,1755546639540,-480.0,0.00019178,2]
[380105539,1755546639549,-480.0,0.00019178,2]
[380105540,1755546639559,-464.20774329,0.00019178,2]
[380105541,1755546639568,-470.29744571,0.00019178,2]
[380105542,1755546639577,-480.0,0.00019178,2]
[380105543,1755546639587,-480.0,0.00019178,2]
[380105544,1755546639596,-461.31190261,0.00019178,2]
[380105545,1755546639605,-518.72865993,0.00019178,2]
[380105546,1755546639614,-480.0,0.00019178,2]
[380105547,1755546639624,-480.0,0.00019178,2]
[380105548,1755546639634,-480.0,0.00019178,2]
[380105549,1755546639644,-480.0,0.00019178,2]
[380105550,1755546639654,-480.0,0.00019178,2]
[380105551,1755546639663,-480.0,0.00019178,2]
[380105552,1755546639672,-480.0,0.00019178,2]
[380105553,1755546639681,-466.16550636,0.00019178,2]
[380105554,1755546639691,-480.0,0.00019178,2]
[380105555,1755546639700,-480.0,0.00019178,2]
[380105556,1755546639709,-480.0,0.00019178,2]
[380105557,1755546639719,-225.34284633,0.00019178,2]
[380105558,1755546639728,-480.0,0.00019178,2]
[380105559,1755546639738,-608.62467816,0.00019178,2]
[380105560,1755546639747,-480.0,0.00019178,2]
[380105561,1755546639757,-480.0,0.00019178,2]
[380105562,1755546639767,-480.0,0.00019178,2]
[380105563,1755546639778,-480.0,0.00019178,2]
[380105564,1755546639789,-480.0,0.00019178,2]
[380105565,1755546639798,-460.06541847,0.00019178,2]
[380105566,1755546639808,-480.0,0.00019178,2]
[380105567,1755546639818,-480.0,0.00019178,2]
[380105568,1755546639828,-480.0,0.00019178,2]
[380105569,1755546639837,-480.0,0.00019178,2]
[380105570,1755546639847,-461.88001973,0.00019178,2]
[380105571,1755546639856,-480.0,0.00019178,2]
[380105572,1755546639866,-480.0,0.00019178,2]
[380105573,1755546639875,-498.71490212,0.00019178,2]
[380105574,1755546639885,-480.0,0.00019178,2]
[380105575,1755546639895,-480.0,0.00019178,2]
[380105576,1755546639904,-460.82428916,0.00019178,2]
[380105577,1755546639913,-480.0,0.00019178,2]
[380105578,1755546639923,-480.0,0.00019178,2]
[380105579,1755546639933,-500.0,0.00019178,2]
[380105580,1755546639942,-480.0,0.00019178,2]
[380105581,1755546639951,-391.84257938,0.00019178,2]
[380105582,1755546639961,-480.0,0.00019178,2]
[380105583,1755546639970,-480.0,0.00019178,2]
[380105584,1755546639979,-460.54862949,0.00019178,2]
[380105585,1755546639989,-480.0,0.00019178,2]
[380105586,1755546639998,-480.0,0.00019178,2]
[380105587,1755546640008,-480.0,0.00019178,2]
[380105588,1755546640017,-480.0,0.00019178,2]
[380105589,1755546640027,-480.0,0.00019178,2]
[380105590,1755546640036,-480.0,0.00019178,2]
[380105592,1755546640045,-480.0,0.00019178,2]
[380105595,1755546640055,-480.0,0.00019178,2]
[380105597,1755546640064,-480.0,0.00019178,2]
[380105599,1755546640073,-480.0,0.00019178,2]
[380105601,1755546640083,-480.0,0.00019178,2]
[380105602,1755546640093,-464.78285376,0.00019178,2]
[380105603,1755546640103,-480.0,0.00019178,2]
[380105604,1755546640112,-480.0,0.00019178,2]
[380105605,1755546640122,-480.0,0.00019178,2]
[380105606,1755546640131,-480.0,0.00019178,2]
[380105607,1755546640140,-452.14254679,0.00019178,2]
[380105608,1755546640150,-480.0,0.00019178,2]
[380105609,1755546640160,-480.0,0.00019178,2]
[380105610,1755546640169,-480.0,0.00019178,2]
[380105611,1755546640179,-480.0,0.00019178,2]
[380105612,1755546640189,-480.0,0.00019178,2]
[380105613,1755546640198,-480.0,0.00019178,2]
[380105614,1755546640207,-488.24191628,0.00019178,2]
[380105615,1755546640217,-480.0,0.00019178,2]
[380105616,1755546640227,-480.0,0.00019178,2]
[380105617,1755546640237,-480.0,0.00019178,2]
[380105618,1755546640247,-489.68888808,0.00019178,2]
[380105619,1755546640258,-480.0,0.00019178,2]
[380105620,1755546640268,-480.0,0.00019178,2]
[380105621,1755546640278,-480.0,0.00019178,2]